[Event "HUN-chT Youth 2019"]
[Site "Budapest"]
[Date "2019.10.29"]
[Round "7.3"]
[White "Kovacs, Kristof"]
[Black "Onodi, Miklos"]
[Result "0-1"]
[ECO "B30"]
[WhiteElo "1547"]
[BlackElo "1548"]
[Annotator "NA"]
[PlyCount "94"]
[EventDate "2019.10.26"]
[EventType "team-tourn"]
[EventCountry "HUN"]
[SourceTitle "playchess.com"]
[Source "ChessBase"]
[SourceQuality "1"]
[TimeControl "5400+30"]

1. e4 {[%emt 0:00:00]} c5 {[%emt 0:00:00]} 2. Nf3 {[%emt 0:00:00]} Nc6 {[%emt 0:00:00]} 3. Bb5 {[%emt 0:00:00]} Qc7 {[%emt 0:00:04]} 4. O-O {[%emt 0:00:32]} a6 {[%emt 0:00:05]} 5. Bxc6 {[%emt 0:00:12]} dxc6 {[%emt 0:00:07]} 6. d3 {[%emt 0:00:52]} e5 {[%emt 0:00:38]} 7. b3 {[%emt 0:01:10]} Ne7 {[%emt 0:00:46]} 8. Bb2 {[%emt 0:00:20]} f6 {[%emt 0:00:22]} 9. Nbd2 {[%emt 0:01:00]} Be6 {[%emt 0:00:42]} 10. Qe2 {[%emt 0:01:07]} Ng6 {[%emt 0:00:51]} 11. c3 {[%emt 0:02:07]} Nf4 {[%emt 0:04:43]} 12. Qe3 {[%emt 0:00:34]} g5 {[%emt 0:12:41]} 13. d4 {[%emt 0:01:12]} g4 {[%emt 0:01:17]} 14. Nh4 {[%emt 0:01:04]} Bh6 {[%emt 0:01:49]} 15. Qe1 {[%emt 0:05:14]} Nd3 {[%emt 0:05:54]} 16. Qb1 {[%emt 0:00:32]} Nxb2 {[%emt 0:04:38]} 17. Qxb2 {[%emt 0:00:10]} Bg5 {[%emt 0:00:41]} 18. Nf5 {[%emt 0:00:27]} O-O-O {[%emt 0:02:22]} 19. Nc4 {[%emt 0:03:24]} Bxf5 {[%emt 0:08:35]} 20. exf5 {[%emt 0:00:17]} cxd4 {[%emt 0:00:58]} 21. cxd4 {[%emt 0:00:25]} Rxd4 {[%emt 0:01:39]} 22. Rfd1 {[%emt 0:00:17]} Rhd8 {[%emt 0:00:24]} 23. Rxd4 {[%emt 0:00:16]} Rxd4 {[%emt 0:00:36]} 24. Qa3 {[%emt 0:00:40]} Kb8 {[%emt 0:04:13]} 25. Qf8+ {[%emt 0:00:25]} Rd8 {[%emt 0:01:10]} 26. Qc5 {[%emt 0:00:32]} Qd7 {[%emt 0:01:26]} 27. Rf1 {[%emt 0:00:41]} Qxf5 {[%emt 0:01:22]} 28. Qb6 {[%emt 0:00:34]} Qd7 {[%emt 0:01:25]} 29. g3 {[%emt 0:00:55]} Qd4 {[%emt 0:02:29]} 30. Qb4 {[%emt 0:00:49]} b5 {[%emt 0:01:27]} 31. Na5 {[%emt 0:00:36]} Qxb4 {[%emt 0:01:53]} 32. Nxc6+ {[%emt 0:00:06]} Kb7 {[%emt 0:00:04]} 33. Nxb4 {[%emt 0:00:17]} a5 {[%emt 0:00:04]} 34. Nc2 {[%emt 0:00:28]} Rd2 {[%emt 0:00:13]} 35. Ne3 {[%emt 0:00:19]} Bxe3 {[%emt 0:00:20]} 36. fxe3 {[%emt 0:00:04]} Rxa2 {[%emt 0:00:08]} 37. Rxf6 {[%emt 0:00:08]} Re2 {[%emt 0:00:27]} 38. Rf7+ {[%emt 0:00:09]} Kc6 {[%emt 0:00:28]} 39. Rxh7 {[%emt 0:00:17]} Rxe3 {[%emt 0:00:05]} 40. Rh6+ {[%emt 0:00:12]} Kc5 {[%emt 0:00:12]} 41. h4 {[%emt 0:00:48]} gxh3 {[%emt 0:00:57]} 42. g4 {[%emt 0:00:08]} Rg3+ {[%emt 0:00:13]} 43. Kf2 {[%emt 0:00:09]} Rxg4 {[%emt 0:00:08]} 44. Rxh3 {[%emt 0:00:05]} Rb4 {[%emt 0:00:21]} 45. Re3 {[%emt 0:00:08]} Kd5 {[%emt 0:00:29]} 46. Rd3+ {[%emt 0:00:23]} Rd4 {[%emt 0:00:20]} 47. Rc3 {[%emt 0:00:07]} Re4 0-1

[Event "HUN-chT Youth 2019"]
[Site "Budapest"]
[Date "2019.10.29"]
[Round "7.4"]
[White "Kovacs, Gabor Etele"]
[Black "Kiss, Eniko"]
[Result "1/2-1/2"]
[ECO "C10"]
[WhiteElo "2053"]
[BlackElo "1703"]
[Annotator "NA"]
[PlyCount "53"]
[EventDate "2019.10.26"]
[EventType "team-tourn"]
[EventCountry "HUN"]
[SourceTitle "playchess.com"]
[Source "ChessBase"]
[SourceQuality "1"]
[TimeControl "5400+30"]

1. e4 {[%emt 0:00:00]} e6 {[%emt 0:00:00]} 2. d4 {[%emt 0:00:00]} d5 {[%emt 0:00:00]} 3. Nd2 {[%emt 0:00:00]} dxe4 {[%emt 0:00:20]} 4. Nxe4 {[%emt 0:00:00]} Bd7 {[%emt 0:00:16]} 5. Nf3 {[%emt 0:00:36]} Bc6 {[%emt 0:00:22]} 6. Bd3 {[%emt 0:00:09]} Nd7 {[%emt 0:00:35]} 7. O-O {[%emt 0:03:02]} Ngf6 {[%emt 0:00:24]} 8. Ng3 {[%emt 0:00:54]} Bd6 {[%emt 0:01:43]} 9. c3 {[%emt 0:04:13] C10: French with 3 Nc3: Unusual Black 3rd moves and 3...dxe4} (9. Re1 O-O 10. Ne5 Bxe5 11. dxe5 Nd5 12. Qh5 g6 13. Qh6 f5 14. exf6 Qxf6 15. Ne4 Qg7 16. Qh4 Rfe8 17. Bh6 Qxb2 {1-0 (33) Le,Q (2714)-Teske,H (2483) St Petersburg 2018}) 9... O-O {[%emt 0:01:35]} 10. Qe2 {[%emt 0:00:33]} h6 {[%emt 0:02:42]} 11. Ne5 $146 {[%emt 0:01:30]} ({Predecessor:} 11. b4 a6 12. a4 Nb6 13. a5 Nbd5 14. Bd2 {½-½ (68) Szakats,S (1859)-Shan,H (1528) Budapest 2010}) 11... Bxe5 {[%emt 0:05:20] Remove Defender} 12. dxe5 {[%emt 0:00:02]} Nd5 {[%emt 0:00:13]} (12... Nxe5 $11 13. Qxe5 Qxd3) 13. Nh5 {[%emt 0:13:35]} Kh8 {[%emt 0:02:15]} 14. Qg4 {[%emt 0:34:12]} Rg8 {[%emt 0:07:49]} 15. Re1 {[%emt 0:03:48]} Nc5 {[%emt 0:04:04]} 16. Bc2 {[%emt 0:00:51]} Qe7 {[%emt 0:02:20] [#]} 17. Qh3 $1 {[%emt 0:01:05]} Qf8 {[%emt 0:03:21] [#]} 18. c4 $2 {[%emt 0:11:46]} (18. Nf6 $1 $18 {[%mdl 512]}) 18... Nb4 {[%emt 0:03:05]} 19. Bb1 {[%emt 0:00:01]} Rd8 {[%emt 0:02:29]} 20. Bg5 {[%emt 0:01:12]} Rd7 {[%emt 0:05:12] [#]} 21. Rf1 $15 {[%emt 0:11:28]} ({White should play} 21. Nf6 $1 $18 {[%mdl 512]}) 21... Ne4 {[%emt 0:03:02]} 22. Be3 {[%emt 0:01:50]} Nd2 {[%emt 0:01:25]} 23. Rd1 {[%emt 0:02:47]} Nxc4 {[%emt 0:08:23]} 24. Rxd7 {[%emt 0:00:57]} Bxd7 {[%emt 0:00:17]} 25. Bf4 {[%emt 0:01:29]} Nxb2 {[%emt 0:01:29]} 26. Qb3 {[%emt 0:02:49]} Na4 {[%emt 0:00:44]} 27. a3 {[%emt 0:00:17]} 1/2-1/2

[Event "HUN-chT Youth 2019"]
[Site "Budapest"]
[Date "2019.10.29"]
[Round "7.4"]
[White "Kerekes, Laszlo Fulop"]
[Black "Szabo, Akos"]
[Result "1-0"]
[ECO "C52"]
[WhiteElo "1369"]
[BlackElo "1418"]
[Annotator "NA"]
[PlyCount "59"]
[EventDate "2019.10.26"]
[EventType "team-tourn"]
[EventCountry "HUN"]
[SourceTitle "playchess.com"]
[Source "ChessBase"]
[SourceQuality "1"]
[TimeControl "5400+30"]

1. e4 {[%emt 0:00:00]} e5 {[%emt 0:00:00]} 2. Bc4 {[%emt 0:00:00]} Nc6 {[%emt 0:00:06]} 3. Nf3 {[%emt 0:00:37]} Bc5 {[%emt 0:00:27]} 4. b4 {[%emt 0:01:54]} Bxb4 {[%emt 0:00:41]} 5. c3 {[%emt 0:00:59]} Ba5 {[%emt 0:00:11]} 6. d4 {[%emt 0:02:47]} exd4 {[%emt 0:00:12]} 7. Qb3 {[%emt 0:02:16]} Qe7 {[%emt 0:01:55]} 8. O-O {[%emt 0:01:12]} dxc3 {[%emt 0:01:35]} 9. Ba3 {[%emt 0:03:04]} d6 {[%emt 0:01:33]} 10. Nxc3 {[%emt 0:02:01]} Bxc3 {[%emt 0:00:42]} 11. Qxc3 {[%emt 0:00:50]} Ne5 {[%emt 0:04:02]} 12. Nxe5 {[%emt 0:01:15]} Qxe5 {[%emt 0:00:48]} 13. Qb3 {[%emt 0:04:07]} Qh5 {[%emt 0:00:47]} 14. Rfe1 {[%emt 0:02:45]} Nh6 {[%emt 0:08:06]} 15. e5 {[%emt 0:04:14]} O-O {[%emt 0:00:22]} 16. exd6 {[%emt 0:04:35]} cxd6 {[%emt 0:00:18]} 17. Bxd6 {[%emt 0:01:15]} Qg6 {[%emt 0:00:17]} 18. Bxf8 {[%emt 0:00:47]} Be6 {[%emt 0:02:03]} 19. Bxe6 {[%emt 0:01:17]} Rxf8 {[%emt 0:00:11]} 20. Bd7 {[%emt 0:01:30]} b6 {[%emt 0:00:45]} 21. h3 {[%emt 0:01:26]} Nf5 {[%emt 0:02:30]} 22. Bxf5 {[%emt 0:00:51]} Qxf5 {[%emt 0:00:06]} 23. Re7 {[%emt 0:01:12]} Rc8 {[%emt 0:01:08]} 24. Rae1 {[%emt 0:00:42]} h6 {[%emt 0:00:27]} 25. Re8+ {[%emt 0:00:53]} Rxe8 {[%emt 0:00:05]} 26. Rxe8+ {[%emt 0:00:22]} Kh7 {[%emt 0:00:11]} 27. Re7 {[%emt 0:01:28]} Kg8 {[%emt 0:00:52]} 28. Rxa7 {[%emt 0:01:45]} Qg5 {[%emt 0:00:25]} 29. Qxf7+ {[%emt 0:01:21]} Kh7 {[%emt 0:00:15]} 30. f4 1-0

[Event "HUN-chT Youth 2019"]
[Site "Budapest"]
[Date "2019.10.29"]
[Round "7.5"]
[White "Ivan, Reka Gyongyver"]
[Black "Giang, Tran Nam"]
[Result "0-1"]
[ECO "D00"]
[WhiteElo "1686"]
[BlackElo "2028"]
[Annotator "NA"]
[PlyCount "42"]
[EventDate "2019.10.26"]
[EventType "team-tourn"]
[EventCountry "HUN"]
[SourceTitle "playchess.com"]
[Source "ChessBase"]
[SourceQuality "1"]
[TimeControl "5400+30"]

1. d4 {[%emt 0:00:00]} d5 {[%emt 0:00:00]} 2. Bf4 {[%emt 0:00:00]} Nf6 {[%emt 0:00:00]} 3. e3 {[%emt 0:00:00]} c5 {[%emt 0:00:00]} 4. c3 {[%emt 0:00:10]} Nc6 {[%emt 0:00:00]} 5. Nd2 {[%emt 0:00:15]} Bf5 {[%emt 0:00:14]} 6. Ngf3 {[%emt 0:01:37]} Qb6 {[%emt 0:01:53]} 7. Qc1 {[%emt 0:01:25]} h6 {[%emt 0:03:32] D02: 1 d4 d5 2 Nf3 sidelines, including 2...Nf6 3 g3 and 2...Nf6 3 Bf4} (7... e6 8. a4 a6 9. Be2 Rc8 10. O-O Be7 11. a5 Qd8 12. dxc5 Bxc5 13. Nb3 Be7 14. Nbd4 Bg4 15. Nxc6 Rxc6 {1-0 (59) Firouzja,A (2499)-Wen,Y (2617) Bandar e Anzali 2017}) 8. dxc5 {[%emt 0:04:25]} Qxc5 {[%emt 0:00:43]} 9. Nb3 {[%emt 0:00:15]} Qb6 {[%emt 0:00:16]} 10. Qd2 $146 {[%emt 0:00:33]} (10. Nbd4 $5 {[%cal Rd4f5]} Bh7 11. a4 $11) ({Predecessor:} 10. Qd1 e6 11. Bd3 Bxd3 {½-½ (30) Muzina,M (1996)-Josic,H (2180) Garesnica 2018}) 10... e6 {[%emt 0:01:23]} 11. Bd3 {[%emt 0:01:08]} Bxd3 {[%emt 0:02:13]} 12. Qxd3 {[%emt 0:00:09]} Be7 {[%emt 0:00:42]} 13. Rb1 {[%emt 0:03:30]} O-O {[%emt 0:01:34]} 14. O-O {[%emt 0:00:25]} Nh5 {[%emt 0:06:20]} 15. Be5 {[%emt 0:02:09]} Nxe5 {[%emt 0:01:30]} 16. Nxe5 {[%emt 0:00:09]} Nf6 {[%emt 0:01:09]} 17. Qd4 {[%emt 0:01:56]} Qc7 {[%emt 0:02:20]} 18. Nd2 {[%emt 0:02:28]} Bc5 {[%emt 0:02:14]} 19. Qf4 {[%emt 0:01:55]} Nh5 {[%emt 0:00:34]} 20. Qh4 $19 {[%emt 0:25:04]} Qxe5 {[%emt 0:00:17]} 21. Nf3 {[%emt 0:00:12]} Qf5 {[%emt 0:00:10]} 0-1

[Event "HUN-chT Youth 2019"]
[Site "Budapest"]
[Date "2019.10.29"]
[Round "7.5"]
[White "Lazsadi, Blanka Anna"]
[Black "Molnar, Dalma Reka"]
[Result "1-0"]
[ECO "C47"]
[WhiteElo "1142"]
[BlackElo "1088"]
[Annotator "NA"]
[PlyCount "99"]
[EventDate "2019.10.26"]
[EventType "team-tourn"]
[EventCountry "HUN"]
[SourceTitle "playchess.com"]
[Source "ChessBase"]
[SourceQuality "1"]
[TimeControl "5400+30"]

1. e4 {[%emt 0:00:00]} e5 {[%emt 0:00:00]} 2. Nf3 {[%emt 0:00:04]} Nc6 {[%emt 0:00:00]} 3. Nc3 {[%emt 0:00:42]} Nf6 {[%emt 0:00:00]} 4. d4 {[%emt 0:01:06]} d6 {[%emt 0:01:00]} 5. h3 {[%emt 0:00:24]} Be7 {[%emt 0:00:38]} 6. Bb5 {[%emt 0:02:59]} a6 {[%emt 0:00:32]} 7. Bxc6+ {[%emt 0:00:17]} bxc6 {[%emt 0:00:07]} 8. dxe5 {[%emt 0:00:10]} dxe5 {[%emt 0:00:18]} 9. Qxd8+ {[%emt 0:00:16]} Bxd8 {[%emt 0:00:06]} 10. Nxe5 {[%emt 0:00:11]} Bb7 {[%emt 0:01:03]} 11. O-O {[%emt 0:02:22]} O-O {[%emt 0:00:23]} 12. Bf4 {[%emt 0:01:14]} Be7 {[%emt 0:02:06]} 13. Nd3 {[%emt 0:01:25]} Rac8 {[%emt 0:00:43]} 14. Ne2 {[%emt 0:03:09]} Nxe4 {[%emt 0:01:49]} 15. Rfe1 {[%emt 0:02:42]} Bd6 {[%emt 0:00:54]} 16. Bxd6 {[%emt 0:07:06]} cxd6 {[%emt 0:00:13]} 17. Nd4 {[%emt 0:01:02]} Nf6 {[%emt 0:00:34]} 18. Nf5 {[%emt 0:01:21]} Rcd8 {[%emt 0:00:59]} 19. Re7 {[%emt 0:00:40]} Ba8 {[%emt 0:00:29]} 20. Ra7 {[%emt 0:00:32]} g6 {[%emt 0:02:54]} 21. Ne3 {[%emt 0:01:58]} Rb8 {[%emt 0:03:17]} 22. Rxa6 {[%emt 0:00:48]} Bb7 {[%emt 0:00:08]} 23. Rb6 {[%emt 0:00:18]} Rfd8 {[%emt 0:00:29]} 24. a4 {[%emt 0:00:23]} c5 {[%emt 0:00:10]} 25. a5 {[%emt 0:00:24]} Be4 {[%emt 0:00:22]} 26. Nxc5 {[%emt 0:01:06]} Rxb6 {[%emt 0:00:33]} 27. Nxe4 {[%emt 0:01:14]} Nxe4 {[%emt 0:01:44]} 28. axb6 {[%emt 0:00:13]} Rb8 {[%emt 0:00:10]} 29. Nd5 {[%emt 0:00:45]} Nc5 {[%emt 0:00:24]} 30. b4 {[%emt 0:00:36]} Nb7 {[%emt 0:00:21]} 31. Kf1 {[%emt 0:00:24]} f5 {[%emt 0:00:18]} 32. Ke2 {[%emt 0:00:39]} Kf7 {[%emt 0:00:28]} 33. Kd3 {[%emt 0:02:41]} Ke6 {[%emt 0:00:09]} 34. c4 Kd7 {[%emt 0:00:57]} 35. b5 {[%emt 0:06:23]} Nc5+ {[%emt 0:00:44]} 36. Kc2 {[%emt 0:01:23]} Nb7 {[%emt 0:01:07]} 37. Nf6+ {[%emt 0:00:42]} Ke6 {[%emt 0:00:26]} 38. Nxh7 {[%emt 0:00:11]} Ke5 {[%emt 0:00:48]} 39. Kc3 {[%emt 0:00:27]} f4 {[%emt 0:00:18]} 40. Re1+ {[%emt 0:00:41]} Kf5 {[%emt 0:00:40]} 41. Kd4 {[%emt 0:00:41]} Rh8 {[%emt 0:00:31]} 42. Re7 {[%emt 0:00:38]} Nc5 {[%emt 0:01:13]} 43. Kd5 {[%emt 0:01:05]} g5 {[%emt 0:00:35]} 44. Kxd6 {[%emt 0:00:40]} Kg6 {[%emt 0:01:25]} 45. Kxc5 {[%emt 0:00:58]} Rxh7 {[%emt 0:00:21]} 46. Rxh7 {[%emt 0:00:24]} Kxh7 {[%emt 0:00:45]} 47. b7 {[%emt 0:00:07]} Kg6 {[%emt 0:00:04]} 48. b8=Q {[%emt 0:00:16]} Kf5 {[%emt 0:00:07]} 49. Qd6 {[%emt 0:00:17]} Ke4 {[%emt 0:00:15]} 50. Qd5# {[%emt 0:00:26] Kxd5+} 1-0

[Event "HUN-chT Youth 2019"]
[Site "Budapest"]
[Date "2019.10.29"]
[Round "7.6"]
[White "Toth, Kincso"]
[Black "Kiraly, Lilla Virag"]
[Result "0-1"]
[ECO "B13"]
[WhiteElo "1556"]
[BlackElo "1450"]
[Annotator "NA"]
[PlyCount "54"]
[EventDate "2019.10.26"]
[EventType "team-tourn"]
[EventCountry "HUN"]
[SourceTitle "playchess.com"]
[Source "ChessBase"]
[SourceQuality "1"]
[TimeControl "5400+30"]

1. e4 {[%emt 0:00:00]} c6 {[%emt 0:00:00]} 2. d4 {[%emt 0:00:00]} d5 {[%emt 0:00:00]} 3. exd5 {[%emt 0:00:26]} cxd5 {[%emt 0:00:00]} 4. Bd3 {[%emt 0:01:32]} Nf6 {[%emt 0:00:20]} 5. h3 {[%emt 0:01:04]} Nc6 {[%emt 0:00:49]} 6. c3 {[%emt 0:00:52]} e6 {[%emt 0:00:34]} 7. Nf3 {[%emt 0:01:04]} Bd6 {[%emt 0:01:16]} 8. O-O {[%emt 0:01:09]} O-O {[%emt 0:01:13]} 9. Re1 {[%emt 0:01:24]} a6 {[%emt 0:02:19]} 10. Qe2 {[%emt 0:01:34]} b5 {[%emt 0:01:57]} 11. a3 {[%emt 0:07:20]} Qb6 {[%emt 0:03:28]} 12. Nbd2 {[%emt 0:02:50]} Bd7 {[%emt 0:05:52]} 13. Kh1 {[%emt 0:05:45]} Rfb8 {[%emt 0:03:13]} 14. Ne5 {[%emt 0:03:01]} a5 {[%emt 0:01:57]} 15. f4 {[%emt 0:04:04]} b4 {[%emt 0:02:05]} 16. axb4 {[%emt 0:01:05]} axb4 {[%emt 0:00:28]} 17. Rb1 {[%emt 0:11:15]} Qa5 {[%emt 0:02:56]} 18. Ndf3 {[%emt 0:19:28]} bxc3 {[%emt 0:03:41]} 19. b3 {[%emt 0:04:30]} Nb4 {[%emt 0:09:59]} 20. Be3 {[%emt 0:03:11]} Qa2 {[%emt 0:07:51]} 21. Rec1 {[%emt 0:06:22]} Nxd3 {[%emt 0:11:14]} 22. Qxd3 {[%emt 0:00:44]} Bb4 {[%emt 0:02:25]} 23. Ng5 {[%emt 0:01:54]} Be8 {[%emt 0:01:19]} 24. Ngf3 {[%emt 0:08:30]} Ne4 {[%emt 0:04:38]} 25. Qc2 {[%emt 0:04:09]} Bb5 {[%emt 0:04:31]} 26. Ne1 {[%emt 0:06:17]} Ng3+ {[%emt 0:01:36]} 27. Kh2 {[%emt 0:00:21]} Nf1+ {[%emt 0:00:22]} 0-1

[Event "HUN-chT Youth 2019"]
[Site "Budapest"]
[Date "2019.10.29"]
[Round "7.7"]
[White "Papp, Bence"]
[Black "Geher, Koppany"]
[Result "1/2-1/2"]
[ECO "B47"]
[WhiteElo "2184"]
[BlackElo "2256"]
[Annotator "ChessBase"]
[PlyCount "43"]
[EventDate "2019.10.26"]
[EventType "team-tourn"]
[EventCountry "HUN"]
[SourceTitle "playchess.com"]
[Source "ChessBase"]
[SourceQuality "1"]
[TimeControl "5400+30"]

1. e4 {[%emt 0:00:00]} c5 {[%emt 0:00:00]} 2. Nf3 {[%emt 0:00:00]} Nc6 {[%emt 0:00:00]} 3. Nc3 {[%emt 0:00:24]} e6 {[%emt 0:00:13]} 4. d4 {[%emt 0:00:26]} cxd4 {[%emt 0:00:06]} 5. Nxd4 {[%emt 0:00:04]} Qc7 {[%emt 0:00:07]} 6. g3 {[%emt 0:01:30]} a6 {[%emt 0:00:09]} 7. Bg2 {[%emt 0:00:18]} Nf6 {[%emt 0:00:27]} 8. O-O {[%emt 0:00:29]} Bc5 {[%emt 0:00:20]} 9. Nxc6 {[%emt 0:09:51]} dxc6 {[%emt 0:00:39]} 10. Bg5 {[%emt 0:07:37]} e5 {[%emt 0:02:30]} 11. Qe2 {[%emt 0:06:26]} Be6 {[%emt 0:01:16]} 12. Be3 {[%emt 0:05:39]} Bxe3 {[%emt 0:05:43]} 13. Qxe3 {[%emt 0:01:04]} b5 {[%emt 0:03:38]} 14. Rfd1 {[%emt 0:03:29]} O-O {[%emt 0:00:21]} 15. Rd2 {[%emt 0:05:56]} Rfd8 {[%emt 0:03:00]} 16. Rad1 {[%emt 0:00:54]} Rd7 {[%emt 0:05:25]} 17. a3 {[%emt 0:14:13]} Rad8 {[%emt 0:01:22]} 18. f3 {[%emt 0:00:36]} Rxd2 {[%emt 0:17:11]} 19. Rxd2 {[%emt 0:00:34]} Rxd2 {[%emt 0:04:10]} 20. Qxd2 {[%emt 0:00:10]} Qb6+ {[%emt 0:04:20]} 21. Qf2 {[%emt 0:02:01]} Qxf2+ {[%emt 0:12:36]} 22. Kxf2 {[%emt 0:00:06]} 1/2-1/2

[Event "HUN-chT Youth 2019"]
[Site "Budapest"]
[Date "2019.10.29"]
[Round "7.7"]
[White "Thierry, Edvard"]
[Black "Szabo, Marton Nandor"]
[Result "0-1"]
[ECO "B27"]
[WhiteElo "1507"]
[BlackElo "1803"]
[Annotator "NA"]
[PlyCount "66"]
[EventDate "2019.10.26"]
[EventType "team-tourn"]
[EventCountry "HUN"]
[SourceTitle "playchess.com"]
[Source "ChessBase"]
[SourceQuality "1"]
[TimeControl "5400+30"]

1. e4 {[%emt 0:00:00]} c5 {[%emt 0:00:00]} 2. Nf3 {[%emt 0:00:00]} b6 {[%emt 0:00:00]} 3. d4 {[%emt 0:00:27]} cxd4 {[%emt 0:00:00]} 4. Nxd4 {[%emt 0:00:16]} Bb7 {[%emt 0:00:00]} 5. Nc3 {[%emt 0:00:55]} d6 {[%emt 0:00:54]} 6. Bb5+ {[%emt 0:00:34]} Nd7 {[%emt 0:00:26]} 7. O-O {[%emt 0:00:46]} a6 {[%emt 0:00:58]} 8. Be2 {[%emt 0:00:14]} Ngf6 {[%emt 0:00:15]} 9. f3 {[%emt 0:00:46]} g6 {[%emt 0:00:50]} 10. Be3 {[%emt 0:00:35]} Bg7 {[%emt 0:00:16]} 11. Qd2 {[%emt 0:00:42]} O-O {[%emt 0:00:13]} 12. Bh6 {[%emt 0:01:56]} Rc8 {[%emt 0:03:33]} 13. Bxg7 {[%emt 0:00:13]} Kxg7 {[%emt 0:00:01]} 14. Qg5 {[%emt 0:02:08]} Rc5 {[%emt 0:06:50]} 15. Qg3 {[%emt 0:00:49]} Nh5 {[%emt 0:02:11]} 16. Qf2 {[%emt 0:01:32]} Nhf6 {[%emt 0:06:05]} 17. Rfd1 {[%emt 0:02:10]} Rc8 {[%emt 0:04:36]} 18. Qe3 {[%emt 0:01:53]} Qc7 {[%emt 0:03:50]} 19. Kh1 {[%emt 0:03:18]} b5 {[%emt 0:04:52]} 20. a3 {[%emt 0:01:19]} Ne5 {[%emt 0:08:25]} 21. Bd3 {[%emt 0:04:23]} Nc6 {[%emt 0:03:18]} 22. Nxc6 {[%emt 0:00:50]} Bxc6 {[%emt 0:00:56]} 23. Be2 {[%emt 0:01:04]} Rfd8 {[%emt 0:05:15]} 24. h3 {[%emt 0:00:41]} Bd7 {[%emt 0:07:46]} 25. Bd3 {[%emt 0:00:32]} Be6 {[%emt 0:02:27]} 26. Ne2 {[%emt 0:02:03]} Qc5 {[%emt 0:05:19]} 27. Qxc5 {[%emt 0:00:15]} dxc5 {[%emt 0:00:08]} 28. c3 {[%emt 0:00:15]} Bb3 {[%emt 0:00:16]} 29. Rd2 {[%emt 0:00:57]} c4 {[%emt 0:02:11]} 30. Nd4 {[%emt 0:00:27]} Ba4 {[%emt 0:00:30]} 31. Bc2 {[%emt 0:00:26]} e5 {[%emt 0:00:38]} 32. b3 {[%emt 0:01:29]} cxb3 {[%emt 0:01:01]} 33. Nxb3 {[%emt 0:00:30]} Rxd2 {[%emt 0:00:05]} 0-1

[Event "HUN-chT Youth 2019"]
[Site "Budapest"]
[Date "2019.10.29"]
[Round "7.8"]
[White "Ongut, Tamas Gunes"]
[Black "Leszko, Bence"]
[Result "1-0"]
[ECO "B34"]
[WhiteElo "2214"]
[BlackElo "2201"]
[Annotator "ChessBase"]
[PlyCount "77"]
[EventDate "2019.10.26"]
[EventType "team-tourn"]
[EventCountry "HUN"]
[SourceTitle "playchess.com"]
[Source "ChessBase"]
[SourceQuality "1"]
[TimeControl "5400+30"]

1. e4 {[%emt 0:00:00]} c5 {[%emt 0:00:00]} 2. Nf3 {[%emt 0:00:00]} Nc6 {[%emt 0:00:00]} 3. d4 {[%emt 0:00:52]} cxd4 {[%emt 0:00:00]} 4. Nxd4 {[%emt 0:00:04]} Nf6 {[%emt 0:00:00]} 5. Nc3 {[%emt 0:00:05]} e5 {[%emt 0:00:00]} 6. Ndb5 {[%emt 0:00:06]} d6 {[%emt 0:00:04]} 7. Nd5 {[%emt 0:00:49]} Nxd5 {[%emt 0:00:12]} 8. exd5 {[%emt 0:00:10]} Ne7 {[%emt 0:01:18]} 9. c3 {[%emt 0:03:24]} Ng6 {[%emt 0:00:28]} 10. Qa4 {[%emt 0:02:32]} Bd7 {[%emt 0:01:45]} 11. Qc4 {[%emt 0:01:48]} Bxb5 {[%emt 0:03:31]} 12. Qxb5+ {[%emt 0:01:06]} Qd7 {[%emt 0:00:04]} 13. Be3 {[%emt 0:21:22]} a6 {[%emt 0:01:54]} 14. Qxd7+ {[%emt 0:00:07]} Kxd7 {[%emt 0:00:01]} 15. Bd3 {[%emt 0:06:12]} Ne7 {[%emt 0:00:33]} 16. c4 {[%emt 0:00:15]} f5 {[%emt 0:00:57]} 17. f4 {[%emt 0:01:05]} e4 {[%emt 0:00:45]} 18. Be2 {[%emt 0:00:14]} g6 {[%emt 0:00:54]} 19. Kf2 {[%emt 0:01:43]} Bg7 {[%emt 0:01:54]} 20. Rab1 {[%emt 0:15:21]} Rhf8 {[%emt 0:08:28]} 21. b4 {[%emt 0:06:33]} g5 {[%emt 0:01:20]} 22. fxg5 {[%emt 0:03:39]} f4 {[%emt 0:01:40]} 23. Bb6 {[%emt 0:00:09]} e3+ {[%emt 0:06:38]} 24. Kf1 {[%emt 0:01:11]} Nc8 {[%emt 0:01:51]} 25. Bg4+ {[%emt 0:04:13]} Ke7 {[%emt 0:00:06]} 26. Bc7 {[%emt 0:01:07]} b6 {[%emt 0:02:03]} 27. c5 {[%emt 0:01:42]} Bd4 {[%emt 0:01:20]} 28. Bxc8 {[%emt 0:03:13]} bxc5 {[%emt 0:01:27]} 29. Bg4 {[%emt 0:02:36]} Ra7 {[%emt 0:02:31]} 30. Ba5 {[%emt 0:03:44]} Rb7 {[%emt 0:00:46]} 31. Ke2 {[%emt 0:00:36]} cxb4 {[%emt 0:03:42]} 32. Rxb4 {[%emt 0:07:26]} Rxb4 {[%emt 0:00:23]} 33. Bxb4 {[%emt 0:00:02]} Rb8 {[%emt 0:00:16]} 34. Ba3 {[%emt 0:00:53]} Rb5 {[%emt 0:00:58]} 35. Rd1 {[%emt 0:02:19]} Be5 {[%emt 0:00:51]} 36. Bf3 {[%emt 0:01:57]} Bb2 {[%emt 0:01:21]} 37. Bxb2 {[%emt 0:00:05]} Rxb2+ {[%emt 0:00:02]} 38. Kd3 {[%emt 0:00:26]} Rxa2 {[%emt 0:00:11]} 39. Ke4 {[%emt 0:00:23]} 1-0